bitfinex-derivatives/quotes_ETHF0:USTF0_20241104
["timestamp","ask_amount","ask_price","bid_price","bid_amount"]
[1730687332909,0.40415,2475.4,2475.3,3.2078]
[1730687333099,0.40418,2475.3,2475.2,0.40418]
[1730687333305,0.40411,2475.7,2475.6,0.40411]
[1730687333610,0.82471,2475.7,2475.6,0.40411]
[1730687333795,0.4206,2475.7,2475.3,0.4236]
[1730687334002,0.40413,2475.6,2475.5,0.40413]
[1730687334509,0.4393,2475.6,2475.5,0.40413]
[1730687334903,0.84342,2475.6,2475.5,0.40413]
[1730687335209,0.4393,2475.6,2475.5,0.40413]
[1730687335504,0.84342,2475.6,2475.5,0.40413]
[1730687335710,0.40414,2475.5,2475.4,0.40414]
[1730687335903,0.4298,2475.5,2475.4,0.40414]
[1730687336614,0.83394,2475.5,2475.4,0.40414]
[1730687336903,0.40416,2475.4,2475.3,0.40415]
[1730687337111,0.83394,2475.5,2475.4,0.40415]
[1730687337408,0.4298,2475.5,2475.4,0.40415]
[1730687337611,0.83394,2475.5,2475.4,0.40415]
[1730687338314,0.4298,2475.5,2475.4,0.40415]
[1730687338615,0.83394,2475.5,2475.4,0.40415]
[1730687338909,0.4298,2475.5,2475.4,0.40415]
[1730687339301,0.83394,2475.5,2475.4,0.40415]
[1730687339502,0.40417,2475.3,2475.2,3.56258755]
[1730687339710,0.40417,2475.3,2475.2,0.40417]
[1730687340109,0.4298,2475.5,2475.0,3.15841755]
[1730687340309,0.83394,2475.5,2475.4,0.40415]
[1730687340704,0.4298,2475.5,2475.4,0.40415]
[1730687341313,0.83394,2475.5,2475.4,0.96384195]
[1730687341714,0.83394,2475.5,2475.4,0.55969195]
[1730687342107,0.83394,2475.5,2475.4,0.96384195]
[1730687342610,0.83394,2475.5,2475.4,0.55969195]
[1730687342813,4.87394,2475.5,2475.4,0.55969195]
[1730687343211,4.4698,2475.5,2475.0,6.36621755]
[1730687343406,0.7448,2475.8,2475.5,1.01035]
[1730687343607,2.674,2477.8,2477.5,8.63912137]
[1730687343908,2.674,2477.8,2477.7,3.15841755]
[1730687343909,0.40376,2477.8,2477.7,3.15841755]
[1730687344105,2.674,2477.8,2477.7,6.36621755]
[1730687344302,3.07776,2477.8,2477.7,3.2078]
[1730687344507,2.674,2477.8,2477.7,3.36990324]
[1730687344713,2.674,2477.8,2477.7,6.52832079]
[1730687344909,2.674,2477.8,2477.7,3.36990324]
[1730687345111,2.674,2477.8,2477.7,3.62926562]
[1730687345313,2.674,2477.8,2477.7,6.52832079]
[1730687346003,0.4213,2478.1,2477.7,6.36621755]
[1730687346219,2.674,2477.9,2477.8,0.40375]
[1730687346420,3.0953,2478.1,2477.9,0.40374]
[1730687346811,2.674,2478.0,2477.8,3.2078]
[1730687347110,2.674,2477.9,2477.8,3.61156]
[1730687347310,2.674,2477.9,2477.8,3.37054166]
[1730687347922,2.674,2477.9,2477.8,1.8126]
[1730687349116,2.674,2477.9,2477.5,3.2078]
[1730687349117,3.07775,2477.9,2477.5,3.2078]
[1730687349318,2.674,2477.7,2477.6,0.40379]
[1730687349509,2.674,2477.7,2477.5,3.2078]
[1730687349713,0.4213,2478.1,2477.5,3.61161]
[1730687349714,2.674,2477.6,2477.5,3.61161]
[1730687350010,0.4213,2478.1,2477.5,7.08607894]
[1730687350214,0.4213,2478.1,2477.8,3.2078]
[1730687350215,2.674,2477.9,2477.8,3.2078]
[1730687350522,0.4213,2478.1,2478.0,0.40373]
[1730687350523,3.0953,2478.1,2478.0,0.40373]
[1730687351521,3.0953,2478.1,2477.9,0.40373]
[1730687351819,3.0953,2478.1,2477.8,3.2078]
[1730687352118,3.0953,2478.1,2478.0,0.40373]
[1730687352309,2.674,2478.1,2478.0,0.40373]
[1730687352918,2.674,2478.1,2477.8,3.2078]
[1730687353120,2.674,2477.9,2477.8,3.2078]
[1730687353819,2.674,2477.9,2477.8,3.61156]
[1730687354517,2.674,2477.9,2477.8,3.2078]
[1730687354821,2.674,2477.9,2477.8,3.61156]
[1730687355118,0.45,2478.4,2477.8,3.2078]
[1730687355319,2.674,2477.9,2477.8,3.61155]
[1730687355514,2.674,2477.9,2477.8,3.2078]
[1730687355713,3.1124,2477.9,2477.8,3.2078]
[1730687356022,3.51614,2477.9,2477.8,3.2078]
[1730687356417,3.1124,2477.9,2477.8,3.2078]
[1730687356621,0.40381,2477.6,2477.5,3.2078]
[1730687357126,0.40384,2477.3,2477.2,3.2078]
[1730687357619,3.07784,2477.3,2477.2,3.2078]
[1730687359914,2.674,2477.3,2477.2,3.61166]
[1730687360923,3.07784,2477.3,2477.2,3.2078]
[1730687361118,3.50374,2477.3,2477.2,3.2078]
[1730687361817,3.0999,2477.3,2477.2,3.2078]
[1730687362124,3.50374,2477.3,2477.2,3.2078]
[1730687362325,3.0999,2477.3,2477.2,3.61166]
[1730687362617,3.0999,2477.3,2477.2,3.2078]
[1730687362824,3.0999,2477.3,2477.2,3.61166]
[1730687364122,3.0999,2477.3,2477.2,3.2078]
[1730687364618,3.0999,2477.3,2477.2,3.61166]
[1730687367231,2.674,2477.3,2477.2,3.61166]
[1730687369016,0.40379,2477.7,2477.5,0.4038]
[1730687369223,2.674,2477.6,2477.5,0.4038]
[1730687369421,2.674,2477.6,2477.2,3.6452]
[1730687369729,3.07783,2477.4,2477.3,0.40384]
[1730687370328,2.674,2477.4,2477.3,0.40384]
[1730687370719,3.07783,2477.4,2477.2,3.2078]
[1730687371025,2.674,2477.3,2477.2,3.61166]
[1730687372130,3.07784,2477.3,2477.2,3.61166]
[1730687372331,3.07784,2477.3,2477.2,3.2078]
[1730687372528,3.52424,2477.3,2477.2,3.2078]
[1730687374531,3.1204,2477.3,2476.9,3.2078]
[1730687374734,3.07789,2477.0,2476.9,3.2078]
[1730687375729,3.07789,2477.0,2476.1,1.01007]
[1730687375730,1.00981,2476.9,2476.1,3.1519511]
[1730687375926,3.07802,2476.3,2476.1,0.40404]
[1730687376335,3.07802,2476.3,2476.2,0.40402]
[1730687376521,3.2078,2476.6,2475.9,3.2078]
[1730687376522,2.674,2476.1,2475.9,3.2078]
[1730687376727,2.674,2476.0,2475.9,3.61186]
[1730687376933,3.07805,2476.0,2475.9,3.2078]
[1730687377934,2.674,2476.0,2475.5,0.4309]
[1730687378129,2.674,2475.6,2475.5,0.83504]
[1730687379327,2.674,2475.6,2475.5,0.99587842]
[1730687380129,2.674,2475.6,2475.5,0.83504]
[1730687380332,2.674,2475.6,2475.5,4.20368977]
[1730687381327,3.6292,2476.3,2476.0,0.40405]
[1730687381528,0.40404,2476.1,2475.5,4.64902]
[1730687381735,2.674,2476.0,2475.9,0.40406]
[1730687382036,2.674,2476.0,2475.5,3.6387]
[1730687382228,2.674,2475.9,2475.8,0.40409]
[1730687383031,1.11247757,2476.6,2475.8,3.2078]
[1730687383227,2.674,2476.1,2476.0,0.40405]
[1730687383536,1.55927757,2476.6,2475.8,3.2078]
[1730687383537,2.674,2476.0,2475.8,3.2078]
[1730687383735,2.674,2476.0,2475.9,0.40406]
[1730687384540,0.40408,2475.9,2475.7,0.4041]
[1730687384834,1.01001,2476.4,2475.7,0.4041]
[1730687384835,2.674,2475.8,2475.7,0.4041]
[1730687387738,2.06755324,2475.8,2475.7,0.4041]
[1730687390529,3.2078,2476.9,2475.7,6.3039022]
[1730687390833,3.2078,2476.9,2476.7,0.40393]
[1730687390834,2.06755324,2476.8,2476.7,0.40393]
[1730687393733,0.86024,2477.4,2477.2,0.40385]
[1730687393933,2.06755324,2477.3,2477.2,3.5558111]
[1730687394134,2.06755324,2477.4,2477.3,0.40384]
[1730687396534,3.61157,2477.8,2477.2,6.3597511]
[1730687396730,0.8852,2477.9,2477.2,6.3597511]
[1730687396731,0.4483,2477.9,2477.8,0.40376]
[1730687396936,3.2078,2478.4,2477.8,3.2078]
[1730687397237,2.06755324,2478.0,2477.9,0.40374]
[1730687397634,2.06755324,2478.0,2477.8,3.61155]
[1730687397840,2.06755324,2477.9,2477.8,3.61155]
[1730687398345,0.40371,2478.1,2477.9,0.40374]
[1730687398535,2.06755324,2478.0,2477.9,0.40374]
[1730687399137,2.47128324,2478.0,2477.8,3.61155]
[1730687399339,2.06755324,2478.0,2477.8,3.2078]
[1730687399745,2.47129324,2478.0,2477.8,3.61155]
[1730687400037,2.06755324,2478.0,2477.8,3.2078]
[1730687400637,0.40369,2478.3,2478.1,0.40371]
[1730687400939,0.10097989,2478.8,2478.2,7.1871511]
[1730687401142,0.10097989,2478.8,2478.7,3.5555611]
[1730687401143,2.16853313,2478.8,2478.7,3.5555611]
[1730687401344,0.10097989,2478.8,2478.7,3.5555611]
[1730687401539,3.61134,2479.2,2478.7,7.1863511]
[1730687401840,3.2078,2479.2,2479.0,3.1519511]
[1730687402035,12.3354,2479.6,2479.3,0.40351]
[1730687402036,12.30948,2479.6,2479.3,0.40351]
[1730687402245,0.40336,2480.3,2479.5,3.1519511]
[1730687402540,0.10595974,2480.8,2479.9,3.1519511]
[1730687402733,3.2078,2480.6,2479.9,3.1519511]
[1730687402937,1.01314434,2480.8,2479.2,3.1519511]
[1730687402938,0.4035,2479.4,2479.2,3.1519511]
[1730687403137,2.06755324,2479.5,2479.1,3.2078]
[1730687403441,0.00494434,2480.8,2479.4,7.08236765]
[1730687403646,2.06755324,2480.2,2479.6,3.87456765]
[1730687403841,2.06755324,2480.3,2479.8,3.2078]
[1730687404246,2.06755324,2480.1,2479.8,3.2078]
[1730687404437,2.06755324,2480.0,2479.5,3.2078]
[1730687404841,2.06755324,2479.8,2479.2,3.2078]
[1730687405038,0.40352,2479.3,2479.2,3.2078]
[1730687405239,2.06755324,2479.5,2479.2,0.40353]
[1730687405439,2.06755324,2479.5,2479.2,3.61133]
[1730687405645,0.4188,2479.8,2479.2,3.2078]
[1730687405842,2.47103324,2479.6,2479.2,3.61133]
[1730687406345,0.4188,2479.8,2478.9,3.2078]
[1730687406551,2.06755324,2479.3,2478.9,3.2078]
[1730687406738,2.06755324,2479.6,2479.2,3.61132]
[1730687407040,2.47102324,2479.6,2479.2,3.2078]
[1730687407458,0.40349,2479.5,2479.2,3.2078]
[1730687407637,2.06755324,2479.6,2479.2,3.2078]
[1730687407837,0.40346,2479.7,2479.3,0.40352]
[1730687408137,2.06755324,2479.7,2479.5,3.2078]
[1730687408339,0.40341,2480.0,2479.6,0.40347]
[1730687408545,0.40341,2480.0,2479.8,3.2078]
[1730687408842,2.06755324,2479.8,2479.5,3.2078]
[1730687409147,4.0555,2480.3,2479.5,3.2078]
[1730687409148,2.47101324,2479.7,2479.5,3.2078]
[1730687409445,2.47099324,2479.8,2479.5,3.2078]
[1730687409646,2.06755324,2479.8,2479.5,3.2078]
[1730687409849,0.40346,2479.7,2479.5,3.2078]
[1730687410050,0.8477,2480.3,2479.5,3.2078]
[1730687410342,2.06755324,2480.0,2479.5,3.61128]
[1730687410543,2.06755324,2479.6,2479.5,3.2078]
[1730687410738,4.88303765,2480.2,2479.6,0.40347]
[1730687410739,2.06755324,2479.7,2479.6,0.40347]
[1730687410934,2.06755324,2480.0,2479.6,0.40347]
[1730687411134,2.06755324,2480.3,2479.8,3.2078]
[1730687411351,2.47091324,2480.3,2479.9,0.40341]
[1730687411644,0.4344,2480.7,2480.0,0.4034]
[1730687411645,0.40335,2480.4,2480.0,0.4034]
[1730687412238,0.40337,2480.3,2479.9,0.40342]
[1730687412439,0.4344,2480.7,2479.8,3.2078]
[1730687412744,0.4344,2480.7,2479.1,0.9036]
[1730687412745,2.06755324,2480.0,2479.7,0.40344]
[1730687412942,0.4034,2480.0,2479.7,0.40344]
[1730687413150,3.2078,2480.5,2479.5,3.2078]
[1730687413446,0.4034,2480.0,2479.6,0.40346]
[1730687413752,0.40342,2479.9,2479.6,0.40346]
[1730687413942,0.40346,2479.7,2479.5,3.2078]
[1730687414242,2.06755324,2480.0,2479.5,3.2078]
[1730687414443,2.06755324,2480.0,2479.6,0.40347]
[1730687414444,0.40342,2479.9,2479.6,0.40347]
[1730687415150,2.06755324,2479.9,2479.5,3.2078]
[1730687415349,2.47102324,2479.9,2479.6,0.40351]
[1730687415541,2.06755324,2479.9,2479.6,0.40351]
[1730687415847,0.40348,2479.8,2479.5,3.61132]
[1730687416037,3.2078,2480.2,2479.5,3.2078]
[1730687416237,3.2078,2480.2,2478.9,0.40362]
[1730687416238,0.40359,2479.2,2478.9,0.40362]
[1730687416443,2.47110324,2479.4,2479.1,0.40358]
[1730687416638,0.40356,2479.3,2479.1,0.40358]
[1730687416837,0.40356,2479.3,2479.0,3.2078]
[1730687417038,3.6713,2479.8,2479.0,3.2078]
[1730687417242,2.06755324,2479.4,2479.1,0.40359]
[1730687417441,0.40356,2479.3,2479.1,0.40359]
[1730687417843,3.6713,2479.8,2479.1,0.40359]
[1730687418046,2.06755324,2479.4,2479.0,3.2078]
[1730687418245,0.40356,2479.3,2479.0,3.6114]
[1730687418445,2.47110324,2479.4,2479.1,0.40358]
[1730687418640,0.40358,2479.2,2479.0,3.2078]
[1730687418845,3.6713,2479.8,2479.0,3.2078]
[1730687419052,2.06755324,2479.2,2479.0,3.61141]
[1730687419349,2.06755324,2479.2,2479.0,3.2078]
[1730687419555,2.06755324,2479.1,2479.0,3.2078]
[1730687420453,2.47114324,2479.1,2479.0,3.2078]
[1730687420650,0.40363,2478.9,2478.7,3.2078]
[1730687420855,0.40364,2478.8,2478.7,3.2078]
[1730687421849,2.47119324,2478.8,2478.7,3.2078]
[1730687422353,5.27535324,2478.8,2478.0,3.2078]
[1730687422568,2.06755324,2478.2,2477.7,3.87456765]
[1730687423268,2.06755324,2478.2,2477.6,3.2078]
[1730687423458,3.87456765,2478.8,2478.6,0.40366]
[1730687423459,3.2078,2478.8,2478.6,0.40366]
[1730687423764,0.4498,2479.0,2478.1,1.00939]
[1730687423765,0.85341,2479.0,2478.7,0.40365]
[1730687423958,2.51735324,2479.0,2478.9,0.40362]
[1730687424166,2.51735324,2479.0,2478.8,0.40362]
[1730687424461,2.51735324,2479.0,2478.7,3.2078]
[1730687424863,2.92096324,2479.0,2478.9,8.56673005]
[1730687425066,2.51735324,2479.0,2478.9,0.40362]
[1730687425774,2.51735324,2479.0,2478.8,0.40362]
[1730687426076,2.51735324,2479.0,2478.7,3.2078]
[1730687426262,2.51735324,2479.0,2478.9,0.40362]
[1730687426462,0.4498,2479.0,2478.9,0.40362]
[1730687428174,0.4498,2479.0,2478.8,0.40363]
[1730687428477,0.4498,2479.0,2478.7,3.2078]
[1730687428770,0.4498,2479.0,2478.9,0.40362]
[1730687428974,0.4498,2479.0,2478.7,3.2078]
[1730687429372,0.4498,2479.0,2478.9,0.40362]
[1730687431075,0.85341,2479.0,2478.8,0.40363]
[1730687431275,2.06755324,2478.9,2478.7,3.2078]
[1730687431475,2.47117324,2478.9,2478.7,3.61144]
[1730687431776,2.06755324,2478.9,2478.7,3.2078]
[1730687432069,2.06755324,2478.9,2478.8,0.40364]
[1730687432267,2.47117324,2478.9,2478.8,0.40364]
[1730687432470,2.06755324,2478.9,2478.8,0.40364]
[1730687433174,0.4498,2479.0,2478.9,0.40362]
[1730687433375,0.40344,2480.1,2479.9,0.40344]
[1730687433566,3.61119,2480.4,2480.2,0.4034]
[1730687433773,2.06755324,2480.2,2480.1,0.40343]
[1730687433966,2.06755324,2480.4,2480.3,0.40339]
[1730687434167,2.06755324,2480.4,2479.9,3.2078]
[1730687434369,2.47094324,2480.4,2480.2,0.4034]
[1730687434565,2.06755324,2480.4,2480.2,0.4034]
[1730687435273,2.06755324,2480.4,2480.1,0.40341]
[1730687435274,0.4034,2480.3,2480.1,0.40341]
[1730687435476,2.47094324,2480.4,2480.2,0.40341]
[1730687435875,0.4034,2480.3,2480.1,0.40342]
[1730687436173,0.4034,2480.3,2479.9,3.2078]
[1730687436379,0.8565,2480.6,2479.9,3.2078]
[1730687436680,2.47094324,2480.4,2480.2,0.4034]
[1730687436873,0.4332,2480.6,2479.9,3.2078]
[1730687437079,0.4332,2480.6,2480.5,0.40336]
[1730687437080,2.06755324,2480.6,2480.5,0.40336]
[1730687437377,0.00494434,2480.8,2480.7,0.40333]
[1730687437574,0.00494434,2480.8,2480.7,1.12788006]
[1730687437775,1.92556,2481.7,2481.4,0.40322]
[1730687437776,3.2078,2481.5,2481.4,0.40322]
[1730687438079,5.27535324,2481.5,2481.4,0.40322]
[1730687438373,5.27535324,2481.5,2481.0,7.08236765]
[1730687438577,5.67855324,2481.5,2481.3,0.40323]
[1730687438774,2.06755324,2481.4,2480.6,3.2078]
[1730687438978,0.4033,2480.9,2480.8,0.72395846]
[1730687439274,0.40327,2481.1,2480.9,0.40329]
[1730687439474,2.06755324,2480.9,2480.5,3.87456765]
[1730687439670,2.06755324,2480.9,2480.6,1.12772731]
[1730687439671,2.06755324,2480.8,2480.6,1.12772731]
[1730687439866,2.06755324,2480.8,2480.7,0.72438731]
[1730687440379,2.47086324,2480.8,2480.7,0.15962199]
[1730687440778,0.40335,2480.6,2480.2,7.08236765]
[1730687440979,2.06755324,2480.5,2480.3,0.56505923]
[1730687441176,2.06755324,2480.5,2480.4,0.72478016]
[1730687441578,2.47091324,2480.5,2480.4,0.7248905]
[1730687441878,0.40339,2480.3,2480.2,3.2078]
[1730687442070,2.47094324,2480.3,2480.2,3.2078]
[1730687443882,0.4233,2480.6,2480.2,3.2078]
[1730687444082,2.06755324,2480.5,2480.3,0.40339]
[1730687444276,2.06755324,2480.5,2480.2,3.2078]
[1730687444478,0.4531,2480.7,2480.2,3.2078]
[1730687444479,0.85644,2480.7,2480.2,3.2078]
[1730687444675,2.06755324,2480.6,2480.5,0.40335]
[1730687444874,0.4531,2480.7,2480.2,7.08236765]
[1730687444875,2.06755324,2480.4,2480.3,0.40339]
[1730687445183,1.05859557,2480.4,2480.2,3.6112]
[1730687445679,1.46197557,2480.4,2480.2,3.6112]
[1730687445981,1.46198557,2480.4,2480.2,3.61121]
[1730687446684,0.40339,2480.3,2480.2,3.2078]
[1730687447181,1.46198557,2480.3,2480.2,3.2078]
[1730687447377,1.05859557,2480.3,2479.7,0.40348]
[1730687447581,1.46147,2480.7,2479.8,0.40347]
[1730687447582,1.46204557,2480.0,2479.8,0.40347]
[1730687447776,0.8565772,2480.0,2479.8,0.40347]
[1730687447985,0.8565772,2480.0,2479.6,3.87456765]
[1730687448383,1.2600272,2480.0,2479.8,0.40347]
[1730687448580,0.8565772,2479.9,2479.6,3.87456765]
[1730687448883,0.4528,2480.4,2479.4,0.50448603]
[1730687448884,0.40352,2479.5,2479.4,0.50448603]
[1730687449183,1.2600972,2479.5,2479.4,0.50448603]
[1730687451586,0.8565772,2479.5,2479.4,0.50448603]
[1730687451783,0.4437,2479.9,2479.4,4.53728603]
[1730687451988,3.6606,2480.4,2479.8,0.40348]
[1730687451989,0.40344,2480.1,2479.8,0.40348]
[1730687452189,0.8565772,2480.0,2479.8,0.40348]
[1730687452390,0.8565772,2480.0,2479.5,7.51976765]
[1730687452989,0.40344,2480.1,2479.6,4.0328]
[1730687453287,1.2600172,2480.1,2479.9,0.40345]
[1730687453786,0.40345,2480.0,2479.5,7.51976765]
[1730687453987,1.2600072,2480.1,2479.9,0.40345]
[1730687454385,0.8565772,2480.1,2479.5,7.51976765]
[1730687454576,4.1192,2480.4,2479.5,3.2078]
[1730687454778,1.2600872,2479.6,2479.5,3.2078]
[1730687456884,0.8565772,2479.6,2479.5,3.61132]
[1730687457985,1.2600872,2479.6,2479.5,3.2078]
[1730687458983,0.8565772,2479.6,2479.5,3.2078]
[1730687459189,0.8565772,2479.6,2479.5,3.61132]
[1730687459494,1.2600872,2479.6,2479.5,3.2078]
[1730687459882,0.8565772,2479.6,2479.5,3.61132]
[1730687460287,1.2600872,2479.6,2479.5,3.2078]
[1730687460895,0.8565772,2479.6,2479.0,3.2078]
[1730687461090,0.8565772,2479.1,2479.0,3.61141]
[1730687461490,0.40355,2479.4,2479.2,0.40357]
[1730687461897,0.4224,2479.5,2479.2,0.40357]
[1730687461898,1.2601372,2479.3,2479.2,0.40357]
[1730687462394,0.8565772,2479.3,2479.2,0.40357]
[1730687462689,0.8264,2479.7,2479.2,7.2414]
[1730687462891,0.8565772,2479.4,2479.3,0.40356]
[1730687464106,0.85617,2479.9,2479.7,0.40348]
[1730687464394,0.8565772,2479.7,2479.5,3.2078]
[1730687464593,0.8565772,2479.7,2479.6,0.83991]
[1730687465500,1.2600772,2479.7,2479.5,3.61131]
[1730687465795,0.8565772,2479.7,2479.6,0.40351]
[1730687467493,0.40355,2479.4,2479.0,0.4236]
[1730687467693,3.2078,2479.8,2478.9,3.6302]
[1730687467694,0.8565772,2479.2,2478.9,3.6302]
[1730687467900,1.2601872,2479.0,2478.9,3.2078]
[1730687468092,1.2601872,2479.0,2478.9,3.61142]
[1730687468400,0.4556,2479.7,2478.9,8.4834]
[1730687468693,2.01668,2480.7,2479.6,3.2078]
[1730687468694,1.0084,2480.6,2479.6,3.2078]
[1730687468895,1.2600172,2480.1,2479.7,0.4324]
[1730687469091,0.40344,2480.0,2479.9,0.40345]
[1730687469290,0.8565772,2480.1,2480.0,0.40344]
[1730687469689,0.8565772,2480.1,2479.9,3.2078]
[1730687469896,0.40347,2479.9,2479.8,0.40347]
[1730687470098,0.8565772,2479.9,2479.8,0.40348]
[1730687470789,1.2600372,2479.9,2479.8,0.40348]
[1730687470995,0.8565772,2479.9,2479.8,0.40348]
[1730687472291,4.1156,2480.6,2480.3,0.40339]
[1730687472292,0.40339,2480.4,2480.3,0.40339]
[1730687472493,0.9078,2480.6,2480.3,0.40339]
[1730687472701,0.8565772,2480.4,2480.3,0.40339]
[1730687472892,0.8565772,2480.4,2480.0,3.2078]
[1730687473095,0.8565772,2480.3,2480.2,0.4034]
[1730687473297,0.8565772,2480.3,2480.1,0.40341]
[1730687473298,1.2599772,2480.3,2480.1,0.40341]
[1730687473500,0.8565772,2480.3,2480.0,3.2078]
[1730687473687,0.8565772,2480.3,2480.2,0.40341]
[1730687474193,0.40329,2481.0,2480.8,0.40331]
[1730687474397,3.2078,2481.3,2480.8,0.40331]
[1730687474398,0.8565772,2480.9,2480.8,0.40331]
[1730687474596,1.2598772,2480.9,2480.8,0.40331]
[1730687474897,0.8565772,2480.9,2480.8,0.40331]
[1730687475292,1.2598772,2480.9,2480.8,0.40331]
[1730687475597,0.8565772,2480.9,2480.8,0.40331]
[1730687476693,0.40331,2480.8,2480.7,3.2078]
[1730687476888,1.2598872,2480.8,2480.7,3.2078]
[1730687477096,1.2598872,2480.8,2479.9,4.095]
[1730687477097,5.0726672,2480.8,2479.9,4.095]
[1730687477294,0.8565772,2480.0,2479.9,3.2078]
[1730687477499,0.8565772,2480.0,2479.9,3.61126]
[1730687479097,0.4223,2480.1,2480.0,0.40344]
[1730687479298,0.40344,2480.0,2479.9,3.2078]
[1730687479498,0.8565772,2480.0,2479.9,3.2078]
[1730687479891,1.2600172,2480.0,2479.9,3.2078]
[1730687480594,1.6878172,2480.0,2479.9,3.2078]
[1730687481995,0.8565772,2480.0,2479.9,3.61126]
[1730687482402,0.8565772,2480.0,2479.9,3.2078]
[1730687482403,1.2600172,2480.0,2479.9,3.2078]
[1730687482599,0.8565772,2480.0,2479.9,3.61126]
[1730687483205,1.2600172,2480.0,2479.9,3.2078]
[1730687483708,1.41212,2479.9,2479.3,0.40355]
[1730687483893,0.40353,2479.5,2479.3,0.40355]
[1730687484098,0.8565772,2479.4,2479.3,0.40356]
[1730687484493,0.40356,2479.3,2478.9,0.40361]
[1730687484698,4.0643772,2479.4,2478.8,0.4591]
[1730687484699,3.2078,2479.4,2478.8,0.4591]
[1730687484894,0.8565772,2479.3,2479.2,0.40357]
[1730687485191,0.8565772,2479.3,2479.2,0.56447774]
[1730687485799,0.8565772,2479.3,2479.2,0.40357]
[1730687486001,0.4523,2479.8,2479.2,4.0336]
[1730687486308,4.21632,2480.3,2479.6,0.40351]
[1730687486309,0.8565772,2479.7,2479.6,0.40351]
[1730687487201,0.4379,2480.1,2479.6,7.2406]
[1730687487398,0.4379,2480.1,2480.0,0.40344]
[1730687487595,1.2944772,2480.1,2479.7,0.4493]
[1730687487800,0.4379,2480.1,2479.9,0.40346]
[1730687488102,0.84134,2480.1,2479.9,0.40346]
[1730687488313,0.8565772,2480.0,2479.9,0.40346]
[1730687489306,0.4473,2480.2,2479.9,4.032]
[1730687489499,0.8565772,2480.2,2479.9,3.2078]
[1730687489695,0.8565772,2480.2,2480.1,0.40343]
[1730687490102,0.8967,2480.6,2480.1,4.032]
[1730687490304,0.8565772,2480.3,2480.2,0.40341]
[1730687490504,0.8565772,2480.3,2480.2,0.56419917]
[1730687490811,6.8887649,2482.3,2481.6,0.40318]
[1730687491010,0.8565772,2481.9,2481.8,0.40315]
[1730687491212,0.8565772,2482.1,2481.8,3.2078]
[1730687491402,3.2078,2482.9,2482.6,0.40302]
[1730687491403,3.61078,2482.9,2482.6,0.40302]
[1730687491708,3.61078,2482.9,2481.9,7.08236765]
[1730687491709,0.8565772,2482.2,2481.9,7.08236765]
[1730687491908,0.8565772,2482.2,2482.1,0.4031]
[1730687492312,0.40302,2482.6,2482.2,0.40308]
[1730687492500,3.2078,2482.8,2482.2,3.87456765]
[1730687492700,0.8565772,2482.3,2481.9,7.08236765]
[1730687492910,0.8565772,2482.0,2481.9,7.08236765]
[1730687493109,0.8565772,2482.0,2481.9,3.2078]
[1730687493309,1.2596972,2482.0,2481.9,3.2078]
[1730687493505,0.8565772,2482.0,2481.9,3.2078]
[1730687493810,0.8565772,2482.0,2481.7,0.40317]
[1730687494010,0.86158,2482.3,2481.7,0.40317]
[1730687494212,0.8565772,2481.8,2481.7,0.40317]
[1730687494613,0.8565772,2481.8,2481.6,3.2078]
[1730687494817,0.8565772,2481.7,2481.6,3.61097]
[1730687496501,0.8565772,2481.7,2481.6,3.2078]
[1730687496705,0.8565772,2481.7,2479.9,2.79373308]
[1730687496706,0.40321,2481.5,2481.1,7.96740412]
[1730687496912,0.8565772,2481.2,2481.1,4.75960412]
[1730687497513,0.40318,2481.7,2481.1,11.59454412]
[1730687497715,0.8565772,2481.7,2481.4,7.56414412]
[1730687497904,0.8565772,2481.7,2481.6,0.40318]
[1730687498908,3.6663,2482.3,2481.6,4.0296]
[1730687499109,3.2078,2482.7,2482.2,0.40309]
[1730687499312,0.8565772,2482.4,2482.3,0.40307]
[1730687500417,0.8565772,2482.4,2482.2,0.459]
[1730687500418,0.8565772,2482.4,2482.2,0.86208]
[1730687500625,0.8565772,2482.3,2482.2,0.459]
[1730687500918,0.8565772,2482.3,2482.0,3.2078]
[1730687500919,1.2596572,2482.3,2482.0,0.40311]
[1730687501119,0.8565772,2482.1,2482.0,0.40312]
[1730687502320,0.8565772,2482.1,2481.9,0.40312]
[1730687502518,0.8565772,2482.1,2482.0,0.40312]
[1730687502717,0.8565772,2482.1,2481.9,0.40313]
[1730687502911,0.8565772,2481.9,2481.8,0.40314]
[1730687503314,0.8565772,2481.9,2481.7,0.459]
[1730687503514,0.8565772,2481.8,2481.7,0.86217]
[1730687503817,0.8565772,2481.8,2481.5,0.4301]
[1730687504016,0.8565772,2481.6,2481.5,0.4301]
[1730687504216,0.8565772,2481.6,2481.4,3.2078]
[1730687504415,0.8565772,2481.5,2481.4,3.2078]
[1730687504612,1.2597772,2481.5,2481.4,3.2078]
[1730687504826,0.8565772,2481.5,2481.4,3.2078]
[1730687505923,0.8565772,2481.5,2481.4,3.61102]
[1730687507221,0.8565772,2481.5,2481.4,3.2078]
[1730687507822,0.25147248,2481.5,2481.4,3.2078]
[1730687508425,0.65467248,2481.5,2481.4,3.2078]
[1730687508614,0.65467248,2481.5,2480.9,0.4195]
[1730687508817,0.25147248,2481.2,2481.1,3.61106]
[1730687509216,0.25147248,2481.2,2481.1,3.2078]
[1730687509614,0.65472248,2481.2,2481.1,3.2078]
[1730687509918,0.65472248,2481.2,2480.6,0.8785]
[1730687509919,0.25147248,2481.2,2480.6,0.4544]
[1730687510125,1.00797,2481.6,2480.7,0.40332]
[1730687510126,3.61108,2481.0,2480.7,0.40332]
[1730687510331,0.25147248,2480.7,2480.6,0.4544]
[1730687510519,0.25147248,2480.7,2480.6,0.85775]
[1730687512027,0.25147248,2480.7,2479.8,5.36503412]
[1730687512028,0.40335,2480.6,2479.8,5.36503412]
[1730687512214,0.25147248,2480.3,2480.2,0.40341]
[1730687513022,0.25147248,2480.3,2480.0,3.2078]